Department Family,Entity,Date of Payment,GL Description,Expense Area,Supplier,Voluntary & Community Sector,SME Class,Sole Trader,Transaction number,Purchasing Item Text,Postal Code,Amount in Sterling,Grant?
MHCLG,PINS,03/09/2018,EXP � PURCHASE OF GOODS /SERVICES R & D,Research and Development,EQUINITI TOPLEVEL (T/A),,Small,,5106238868,ODT Alpha Prototype,GL10 3UT,"15,900.00",
MHCLG,PINS,03/09/2018,IT SUPPORT,ICT Digital Services,THIRTY FOUR FEET LTD,,Micro,,5106238971,IT tester services,NP15 1QB,"2,100.00",
MHCLG,PINS,03/09/2018,NSI Fees & Expenses,NSI Fees Planning,ENERGIA CONSULTANTS LTD,,Micro,,2100063663,,GL6 0SA,"1,120.00",
MHCLG,PINS,03/09/2018,NSI Fees & Expenses,NSI Expenses Planning,ENERGIA CONSULTANTS LTD,,Micro,,2100063663,,GL6 0SA,111.90,
MHCLG,PINS,03/09/2018,NSI Fees & Expenses,NSI Fees Planning,H J L PLANNING,,Micro,,2100063629,,CM3 1HZ,280.00,
MHCLG,PINS,03/09/2018,NSI Fees & Expenses,NSI Fees Planning,JDA DEVELOPMENT & PLANNING SERVICE,,Micro,,2100063668,,TA14 6PT,980.00,
MHCLG,PINS,03/09/2018,NSI Fees & Expenses,NSI Expenses Planning,JDA DEVELOPMENT & PLANNING SERVICE,,Micro,,2100063668,,TA14 6PT,98.25,
MHCLG,PINS,03/09/2018,NSI Fees & Expenses,NSI Fees Planning,LJE PLANNING LTD,,Data Not Provided,,2100063623,,SO22 6RT,"1,680.00",
MHCLG,PINS,03/09/2018,NSI Fees & Expenses,NSI Expenses Planning,LJE PLANNING LTD,,Data Not Provided,,2100063623,,SO22 6RT,93.06,
MHCLG,PINS,03/09/2018,NSI Fees & Expenses,NSI Fees Planning,MUSTON PLANNING,,Micro,,2100063669,,BA1 7UD,"4,300.80",
MHCLG,PINS,03/09/2018,NSI Fees & Expenses,NSI Expenses Planning,MUSTON PLANNING,,Micro,,2100063669,,BA1 7UD,499.32,
MHCLG,PINS,03/09/2018,TSOL Adverse Costs,"Policy, Knowledge & Quality",GOVERNMENT LEGAL DEPARTMENT,,Public Bodies,,2100063666,,WC2B 4TS,"13,650.00",
MHCLG,PINS,03/09/2018,TSOL Adverse Costs,"Policy, Knowledge & Quality",GOVERNMENT LEGAL DEPARTMENT,,Public Bodies,,2100063667,,WC2B 4TS,"9,000.00",
MHCLG,PINS,04/09/2018,Advertising,Wales Director,TMP (UK) LIMITED,,Large,,5106239021,Statutory Advertising - Wales 18-19,W1T 7RQ,"1,740.40",
MHCLG,PINS,04/09/2018,Agency Staff,TR People,HAYS SPECIALIST RECRUITMENT LTD,,Large,,5106239011,HRBP- SL,NW1 2AF,638.76,
MHCLG,PINS,04/09/2018,Agency Staff,Planning Casework Operations,REED SPECIALIST RECRUITMENT LTD,,Large,,5106238992,Agency AO MR,SW20 0BA,559.32,
MHCLG,PINS,04/09/2018,Agency Staff,Planning Casework Operations,REED SPECIALIST RECRUITMENT LTD,,Large,,5106238993,AO AGENCY STAFF JJF,SW20 0BA,466.09,
MHCLG,PINS,04/09/2018,Agency Staff,Enforcements,REED SPECIALIST RECRUITMENT LTD,,Large,,5106238996,Agency Staff RT,SW20 0BA,676.66,
MHCLG,PINS,04/09/2018,Agency Staff,Planning Casework Operations,REED SPECIALIST RECRUITMENT LTD,,Large,,5106238999,Agency AO MR,SW20 0BA,610.06,
MHCLG,PINS,04/09/2018,Agency Staff,Planning Casework Operations,REED SPECIALIST RECRUITMENT LTD,,Large,,5106239000,Agency AO CB,SW20 0BA,566.10,
MHCLG,PINS,04/09/2018,Agency Staff,Planning Casework Operations,REED SPECIALIST RECRUITMENT LTD,,Large,,5106239001,AO AGENCY STAFF EJ,SW20 0BA,380.99,
MHCLG,PINS,04/09/2018,Agency Staff,Planning Casework Operations,REED SPECIALIST RECRUITMENT LTD,,Large,,5106239002,AO AGENCY STAFF JJF,SW20 0BA,372.88,
MHCLG,PINS,04/09/2018,Agency Staff,TR People,REED SPECIALIST RECRUITMENT LTD,,Large,,5106239008,AO HR GDPR MC,SW20 0BA,599.84,
MHCLG,PINS,04/09/2018,Agency Staff,Transformation Prog Management Office,REED SPECIALIST RECRUITMENT LTD,,Large,,5106239009,Programme Support role SB,SW20 0BA,878.10,
MHCLG,PINS,04/09/2018,Agency Staff,Planning Casework Operations,REED SPECIALIST RECRUITMENT LTD,,Large,,5106239012,Agency AO JM,SW20 0BA,275.60,
MHCLG,PINS,04/09/2018,Agency Staff,Transformation Prog Management Office,REED SPECIALIST RECRUITMENT LTD,,Large,,5106239013,Programme Support Role,SW20 0BA,566.30,
MHCLG,PINS,04/09/2018,Agency Staff,TR People,REED SPECIALIST RECRUITMENT LTD,,Large,,5106239015,AO HR ADVICE CW,SW20 0BA,517.04,
MHCLG,PINS,04/09/2018,Agency Staff,TR People,REED SPECIALIST RECRUITMENT LTD,,Large,,5106239023,AO HR GDPR MC,SW20 0BA,599.84,
MHCLG,PINS,04/09/2018,Agency Staff,Planning Casework Operations,REED SPECIALIST RECRUITMENT LTD,,Large,,5106239025,AO AGENCY STAFF EJ,SW20 0BA,486.36,
MHCLG,PINS,04/09/2018,Agency Staff,Planning Casework Operations,REED SPECIALIST RECRUITMENT LTD,,Large,,5106239032,Agency AO CB,SW20 0BA,339.66,
MHCLG,PINS,04/09/2018,IT SUPPORT,TR Digital Transformation,HAYS SPECIALIST RECRUITMENT LTD,,Large,,5106238941,IT Business Analyst Resource,NW1 2AF,"3,197.28",
MHCLG,PINS,04/09/2018,Office Supplies,Business Support,BANNER BUSINESS SUPPLIES LTD,,Large,,5106239033,Office Stationery 18-19,S9 1XU,244.55,
MHCLG,PINS,04/09/2018,Office Supplies,Business Support,BANNER BUSINESS SUPPLIES LTD,,Large,,5106239033,Paper 18-19,S9 1XU,212.93,
MHCLG,PINS,05/09/2018,Agency Staff,TR Organisational Agility,REED SPECIALIST RECRUITMENT LTD,,Large,,5106239047,Agency Staff DB,SW20 0BA,824.86,
MHCLG,PINS,05/09/2018,Agency Staff,"Policy, Knowledge & Quality",REED SPECIALIST RECRUITMENT LTD,,Large,,5106239060,Agency Staff for Library,SW20 0BA,599.84,
MHCLG,PINS,05/09/2018,Agency Staff,Inspector Development & Support Team,REED SPECIALIST RECRUITMENT LTD,,Large,,5106239062,Temp staff for IDST,SW20 0BA,615.13,
MHCLG,PINS,05/09/2018,IT - Service Contracts,ICT Digital Services,ZSAH LTD,,Small,,5106239045,Extension of PINS contract 17/12/710,SW7 3HE,"4,098.26",
MHCLG,PINS,05/09/2018,IT SUPPORT,TR Digital Transformation,HAYS SPECIALIST RECRUITMENT LTD,,Large,,5106239051,Commercial Digital Category Mgr,NW1 2AF,"2,098.37",
MHCLG,PINS,05/09/2018,IT SUPPORT,ICT Digital Services,METHODS PROFESSIONAL SERVICES,,Small,,5106239048,DCS review business analyst,EC1A 4EN,"14,223.00",
MHCLG,PINS,05/09/2018,Payroll Services,Human Resources,CGI IT UK LIMITED,,Large,,5106239044,Payroll Service 2018/19,CF31 9AP,"3,698.29",
MHCLG,PINS,05/09/2018,Printing,Business Support,CORPORATE DOCUMENT SERVICES LTD,,Data Not Provided,,5106239046,Envelopes + File Stickers,LS2 7LY,610.76,
MHCLG,PINS,05/09/2018,Vehicle hire,Inspector Costs,ENTERPRISE RENT-A-CAR,,Large,,5106239052,Vehicle hire,TW20 9FB,"9,793.06",
MHCLG,PINS,06/09/2018,IT SUPPORT,TR People,KORN FERRY HAY GROUP LTD,,Large,,5106239106,Reward and Pay Management,SW1Y 6QB,"9,072.00",
MHCLG,PINS,06/09/2018,NSI Fees & Expenses,NSI Fees Planning,EGGLETON PLANNING AND DESIGN,,Micro,,2100063696,,HG4 2QF,"1,008.00",
MHCLG,PINS,06/09/2018,NSI Fees & Expenses,NSI Expenses Planning,EGGLETON PLANNING AND DESIGN,,Micro,,2100063696,,HG4 2QF,105.48,
MHCLG,PINS,06/09/2018,NSI Fees & Expenses,NSI Fees Planning,GARY DEANE ASSOCIATES LIMITED,,Micro,,2100063720,,M33 6RG,"1,344.00",
MHCLG,PINS,06/09/2018,NSI Fees & Expenses,NSI Expenses Planning,GARY DEANE ASSOCIATES LIMITED,,Micro,,2100063720,,M33 6RG,68.58,
MHCLG,PINS,06/09/2018,NSI Fees & Expenses,NSI Fees Planning,SANDRA PRAIL LTD,,Micro,,2100063694,,BN16 1RX,"1,948.80",
MHCLG,PINS,06/09/2018,NSI Fees & Expenses,NSI Expenses Planning,SANDRA PRAIL LTD,,Micro,,2100063694,,BN16 1RX,94.92,
MHCLG,PINS,06/09/2018,NSI Fees & Expenses,NSI Fees Planning,SANDRA PRAIL LTD,,Micro,,2100063712,,BN16 1RX,"1,108.80",
MHCLG,PINS,06/09/2018,NSI Fees & Expenses,NSI Expenses Planning,SANDRA PRAIL LTD,,Micro,,2100063712,,BN16 1RX,74.70,
MHCLG,PINS,06/09/2018,NSI Fees & Expenses,NSI Fees Planning,SANDRA PRAIL LTD,,Micro,,2100063716,,BN16 1RX,"1,108.80",
MHCLG,PINS,06/09/2018,NSI Fees & Expenses,NSI Expenses Planning,SANDRA PRAIL LTD,,Micro,,2100063716,,BN16 1RX,90.00,
MHCLG,PINS,06/09/2018,NSI Fees & Expenses,NSI Fees Planning,STAR PLANNING & DEVELOPMENT LTD,,Micro,,2100063718,,B14 6BX,"2,520.00",
MHCLG,PINS,06/09/2018,NSI Fees & Expenses,NSI Expenses Planning,STAR PLANNING & DEVELOPMENT LTD,,Micro,,2100063718,,B14 6BX,102.90,
MHCLG,PINS,06/09/2018,NSI Fees & Expenses,NSI Fees Planning,W S C WADRUP INDEPENDENT CONS LTD,,Micro,,2100063695,,MK43 7DU,"8,394.00",
MHCLG,PINS,06/09/2018,NSI Fees & Expenses,NSI Expenses Planning,W S C WADRUP INDEPENDENT CONS LTD,,Micro,,2100063695,,MK43 7DU,72.19,
MHCLG,PINS,06/09/2018,TSOL Adverse Costs,"Policy, Knowledge & Quality",GOVERNMENT LEGAL DEPARTMENT,,Public Bodies,,2100063756,,WC2B 4TS,"6,950.00",
MHCLG,PINS,07/09/2018,Agency Staff,TR People,HAYS SPECIALIST RECRUITMENT LTD,,Large,,5106239109,HRBP- SL,NW1 2AF,"2,555.04",
MHCLG,PINS,07/09/2018,Agency Staff,"Finance, Commercial & Performance",REED SPECIALIST RECRUITMENT LTD,,Large,,5106239073,EO For Finance,SW20 0BA,535.96,
MHCLG,PINS,07/09/2018,EXP � PURCHASE OF GOODS /SERVICES R & D,TR Transformation,HAYS SPECIALIST RECRUITMENT LTD,,Large,,2100063816,ODT Benefits Analyst Resource,NW1 2AF,"-2,983.75",
MHCLG,PINS,07/09/2018,EXP � PURCHASE OF GOODS /SERVICES R & D,TR Transformation,HAYS SPECIALIST RECRUITMENT LTD,,Large,,5106238821,ODT Benefits Analyst Resource,NW1 2AF,"2,983.75",
MHCLG,PINS,07/09/2018,NSI Fees & Expenses,NSI Fees Planning,ALISON ROLAND,,Not assigned,,2100063794,,BD20 7BG,"6,988.80",
MHCLG,PINS,07/09/2018,NSI Fees & Expenses,NSI Expenses Planning,ALISON ROLAND,,Not assigned,,2100063794,,BD20 7BG,"1,042.48",
MHCLG,PINS,07/09/2018,NSI Fees & Expenses,NSI Fees Planning,CARBROOK ASSOCIATES,,Micro,,2100063796,,M32 8QU,"1,400.00",
MHCLG,PINS,07/09/2018,NSI Fees & Expenses,NSI Expenses Planning,CARBROOK ASSOCIATES,,Micro,,2100063796,,M32 8QU,31.50,
MHCLG,PINS,07/09/2018,NSI Fees & Expenses,NSI Fees Planning,JDA DEVELOPMENT & PLANNING SERVICE,,Micro,,2100063797,,TA14 6PT,"1,680.00",
MHCLG,PINS,07/09/2018,NSI Fees & Expenses,NSI Expenses Planning,JDA DEVELOPMENT & PLANNING SERVICE,,Micro,,2100063797,,TA14 6PT,122.10,
MHCLG,PINS,07/09/2018,NSI Fees & Expenses,NSI Fees Planning,MARTIN ANDREWS PLANNING CONSULTANCY,,Micro,,2100063792,,BH15 1HH,"2,688.00",
MHCLG,PINS,07/09/2018,NSI Fees & Expenses,NSI Expenses Planning,MARTIN ANDREWS PLANNING CONSULTANCY,,Micro,,2100063792,,BH15 1HH,71.52,
MHCLG,PINS,07/09/2018,Specialist Technical Support,TR Digital Transformation,HAYS SPECIALIST RECRUITMENT LTD,,Large,,5106239110,ITMP PDM,NW1 2AF,"3,728.40",
MHCLG,PINS,07/09/2018,Travel and Subsistence Account,Inspector Costs,REDFERN TRAVEL LIMITED,,Small,,5106239121,AIR TRAVEL,BD1 3AZ,"1,292.15",
MHCLG,PINS,07/09/2018,Travel and Subsistence Account,Inspector Costs,REDFERN TRAVEL LIMITED,,Small,,5106239121,BILLBACK FEE,BD1 3AZ,16.80,
MHCLG,PINS,07/09/2018,Travel and Subsistence Account,Inspector Costs,REDFERN TRAVEL LIMITED,,Small,,5106239121,FERRY TRAVEL,BD1 3AZ,81.91,
MHCLG,PINS,07/09/2018,Travel and Subsistence Account,Inspector Costs,REDFERN TRAVEL LIMITED,,Small,,5106239121,RAIL TRAVEL,BD1 3AZ,"23,547.71",
MHCLG,PINS,07/09/2018,Travel and Subsistence Account,Inspector Costs,REDFERN TRAVEL LIMITED,,Small,,5106239121,WEB TRANSACTION,BD1 3AZ,99.49,
MHCLG,PINS,07/09/2018,Travel and Subsistence Account,Inspector Costs,REDFERN TRAVEL LIMITED,,Small,,5106239121,HOTEL ACCOMMODATION,BD1 3AZ,"25,377.58",
MHCLG,PINS,07/09/2018,Travel and Subsistence Account,Inspector Costs,REDFERN TRAVEL LIMITED,,Small,,5106239121,HOTEL FEE,BD1 3AZ,145.30,
MHCLG,PINS,10/09/2018,Courier Services,Estates,ROYAL MAIL,,Large,,5106239210,Outgoing post,S49 1HQ,"3,325.18",
MHCLG,PINS,10/09/2018,EXP � PURCHASE OF GOODS /SERVICES R & D,TR Transformation,HAYS SPECIALIST RECRUITMENT LTD,,Large,,5106239137,ODTBenefits Analyst Resource,NW1 2AF,"2,983.75",
MHCLG,PINS,10/09/2018,EXP � PURCHASE OF GOODS /SERVICES R & D,TR Transformation,HAYS SPECIALIST RECRUITMENT LTD,,Large,,5106239139,ODTBenefits Analyst Resource,NW1 2AF,"2,983.75",
MHCLG,PINS,10/09/2018,EXP � PURCHASE OF GOODS /SERVICES R & D,TR Transformation,HAYS SPECIALIST RECRUITMENT LTD,,Large,,5106239153,ODTBenefits Analyst Resource,NW1 2AF,"2,983.75",
MHCLG,PINS,10/09/2018,EXP � PURCHASE OF GOODS /SERVICES R & D,TR Transformation,HAYS SPECIALIST RECRUITMENT LTD,,Large,,5106239209,ODTBenefits Analyst Resource,NW1 2AF,"2,387.00",
MHCLG,PINS,10/09/2018,IT SUPPORT,ICT Digital Services,MEDLEY BUSINESS SOLUTIONS LIMITED,,Medium,,5106239151,Services of a Digital Architect,GU4 8PR,"10,454.40",
MHCLG,PINS,10/09/2018,IT SUPPORT,Transformation Prog Management Office,METHODS PROFESSIONAL SERVICES,,Small,,5106238990,PM for Performance Recovery Project,EC1A 4EN,"22,008.42",
MHCLG,PINS,10/09/2018,Office machinery consumables,Business Support,X M A LIMITED,,Data Not Provided,,5106239219,Office Machine Consumables 18-19,NG11 7EP,"1,621.32",
MHCLG,PINS,10/09/2018,Office machinery consumables,Business Support,X M A LIMITED,,Data Not Provided,,5106239221,Office Machine Consumables 18-19,NG11 7EP,"3,264.94",
MHCLG,PINS,10/09/2018,Specialist Technical Support,Transformation Prog Management Office,METHODS PROFESSIONAL SERVICES,,Small,,5106239092,Programme Management Specialist,EC1A 4EN,"13,680.00",
MHCLG,PINS,10/09/2018,Vehicle hire,Business Support,ENTERPRISE RENT-A-CAR,,Large,,5106239148,Repair damage to hire car,TW20 9FB,420.00,
MHCLG,PINS,10/09/2018,Web Services,TR Digital Transformation,PHOENIX SOFTWARE,,Medium,,5106239203,Microsoft Enterprise Mobility + Security,YO42 1NS,"1,309.04",
MHCLG,PINS,11/09/2018,Agency Staff,Planning Casework Operations,REED SPECIALIST RECRUITMENT LTD,,Large,,5106239215,Agency AO CB,SW20 0BA,339.66,
MHCLG,PINS,11/09/2018,Agency Staff,Planning Casework Operations,REED SPECIALIST RECRUITMENT LTD,,Large,,5106239227,AO AGENCY STAFF EJ,SW20 0BA,470.15,
MHCLG,PINS,11/09/2018,Agency Staff,Planning Casework Operations,REED SPECIALIST RECRUITMENT LTD,,Large,,5106239233,Agency AO JM,SW20 0BA,329.76,
MHCLG,PINS,11/09/2018,Agency Staff,Planning Casework Operations,REED SPECIALIST RECRUITMENT LTD,,Large,,5106239234,Agency AO JM,SW20 0BA,445.18,
MHCLG,PINS,11/09/2018,Agency Staff,Planning Casework Operations,REED SPECIALIST RECRUITMENT LTD,,Large,,5106239239,AO AGENCY STAFF JJF,SW20 0BA,372.88,
MHCLG,PINS,11/09/2018,Agency Staff,TR People,REED SPECIALIST RECRUITMENT LTD,,Large,,5106239242,AO HR ADVICE CW,SW20 0BA,332.11,
MHCLG,PINS,11/09/2018,Agency Staff,"Policy, Knowledge & Quality",REED SPECIALIST RECRUITMENT LTD,,Large,,5106239249,Agency Staff for Library,SW20 0BA,308.03,
MHCLG,PINS,11/09/2018,Agency Staff,Governance & Strategic Support,REED SPECIALIST RECRUITMENT LTD,,Large,,5106239251,Agency Staff DB,SW20 0BA,500.41,
MHCLG,PINS,11/09/2018,IT SUPPORT,TR People,KORN FERRY HAY GROUP LTD,,Large,,5106239124,Reward and Pay Management,SW1Y 6QB,867.19,
MHCLG,PINS,11/09/2018,NSI Fees & Expenses,NSI Fees Planning,4 PLANNING DELIVERY LTD,,Micro,,2100063819,,S8 9BG,"1,008.00",
MHCLG,PINS,11/09/2018,NSI Fees & Expenses,NSI Expenses Planning,4 PLANNING DELIVERY LTD,,Micro,,2100063819,,S8 9BG,282.09,
MHCLG,PINS,11/09/2018,NSI Fees & Expenses,NSI Fees Planning,KIM BENNETT PLANNING SERVICES,,Micro,,2100063817,,CT2 7ET,840.00,
MHCLG,PINS,11/09/2018,NSI Fees & Expenses,NSI Expenses Planning,KIM BENNETT PLANNING SERVICES,,Micro,,2100063817,,CT2 7ET,78.45,
MHCLG,PINS,11/09/2018,NSI Fees & Expenses,NSI Fees Planning,LJE PLANNING LTD,,Data Not Provided,,2100063851,,SO22 6RT,"1,680.00",
MHCLG,PINS,11/09/2018,NSI Fees & Expenses,NSI Expenses Planning,LJE PLANNING LTD,,Data Not Provided,,2100063851,,SO22 6RT,96.84,
MHCLG,PINS,11/09/2018,NSI Fees & Expenses,NSI Fees Planning,PJS DEVELOPMENT SOLUTIONS LTD,,Micro,,2100063818,,GL2 0DU,"6,720.00",
MHCLG,PINS,11/09/2018,NSI Fees & Expenses,NSI Expenses Planning,PJS DEVELOPMENT SOLUTIONS LTD,,Micro,,2100063818,,GL2 0DU,297.00,
MHCLG,PINS,11/09/2018,NSI Fees & Expenses,NSI Fees Planning,SANDRA PRAIL LTD,,Micro,,2100063852,,BN16 1RX,"1,108.80",
MHCLG,PINS,11/09/2018,NSI Fees & Expenses,NSI Expenses Planning,SANDRA PRAIL LTD,,Micro,,2100063852,,BN16 1RX,102.54,
MHCLG,PINS,11/09/2018,Specialist Technical Support,"Finance, Commercial & Performance",ALLEN LANE LTD,,Medium,,5106239084,FPBP Resource ext,SW1Y 6RJ,"3,427.68",
MHCLG,PINS,12/09/2018,Agency Staff,Inspector Development & Support Team,REED SPECIALIST RECRUITMENT LTD,,Large,,5106239217,Temp staff for IDST,SW20 0BA,505.43,
MHCLG,PINS,12/09/2018,Agency Staff,Planning Casework Operations,REED SPECIALIST RECRUITMENT LTD,,Large,,5106239220,CLASSIC CASEWORK - ES,SW20 0BA,541.62,
MHCLG,PINS,12/09/2018,Agency Staff,Transformation Prog Management Office,REED SPECIALIST RECRUITMENT LTD,,Large,,5106239224,Programme Support role SB,SW20 0BA,926.10,
MHCLG,PINS,12/09/2018,Agency Staff,Transformation Prog Management Office,REED SPECIALIST RECRUITMENT LTD,,Large,,5106239225,Programme Support Role,SW20 0BA,807.04,
MHCLG,PINS,12/09/2018,Agency Staff,Enforcements,REED SPECIALIST RECRUITMENT LTD,,Large,,5106239240,Agency Staff RT,SW20 0BA,411.48,
MHCLG,PINS,12/09/2018,Agency Staff,Planning Casework Operations,REED SPECIALIST RECRUITMENT LTD,,Large,,5106239278,CLASSIC CASEWORK - KR,SW20 0BA,559.98,
MHCLG,PINS,12/09/2018,IT SUPPORT,TR Digital Transformation,HAYS SPECIALIST RECRUITMENT LTD,,Large,,5106239273,Commercial Digital Category Mgr,NW1 2AF,"3,497.28",
MHCLG,PINS,12/09/2018,NSI Fees & Expenses,NSI Fees Planning,S P PLANNING,,Small,,2100063854,,EC1M 5QA,"2,688.00",
MHCLG,PINS,12/09/2018,NSI Fees & Expenses,NSI Expenses Planning,S P PLANNING,,Small,,2100063854,,EC1M 5QA,47.52,
MHCLG,PINS,13/09/2018,Agency Staff,"Finance, Commercial & Performance",REED SPECIALIST RECRUITMENT LTD,,Large,,5106239232,EO For Finance,SW20 0BA,744.37,
MHCLG,PINS,13/09/2018,Agency Staff,Planning Casework Operations,REED SPECIALIST RECRUITMENT LTD,,Large,,5106239241,CLASSIC CASEWORK - CM,SW20 0BA,512.06,
MHCLG,PINS,13/09/2018,EXP � PURCHASE OF GOODS /SERVICES R & D,Research and Development,GOPRO CONSULTING LTD,,Small,,5106239308,ODT Alpha Prototype GP,WC1N 2EB,"15,140.00",
MHCLG,PINS,13/09/2018,"Furniture, Fittings and carpets",TR Organisational Agility,AMARELLE LTD,,Small,,5106239318,Amarelle Services planning,BS2 0QD,"3,000.00",
MHCLG,PINS,13/09/2018,IT SUPPORT,TR Digital Transformation,HAYS SPECIALIST RECRUITMENT LTD,,Large,,5106239309,Commercial Digital Category Mgr,NW1 2AF,"2,448.10",
MHCLG,PINS,13/09/2018,Rent,Wales Director,JURYS INN CARDIFF,,Large,,5106239296,Room Hire TCA75731,CF10 3DN,377.00,
MHCLG,PINS,13/09/2018,Rent,Wales Director,JURYS INN CARDIFF,,Large,,5106239322,Room Hire,CF10 3DN,391.00,
MHCLG,PINS,13/09/2018,Specialist Technical Support,TR Digital Transformation,HAYS SPECIALIST RECRUITMENT LTD,,Large,,5106239312,IT Business Analyst Resource,NW1 2AF,"1,918.37",
MHCLG,PINS,14/09/2018,Agency Staff,TR People,HAYS SPECIALIST RECRUITMENT LTD,,Large,,5106239387,HRBP- SL,NW1 2AF,"3,193.80",
MHCLG,PINS,14/09/2018,Agency Staff,Planning Casework Operations,REED SPECIALIST RECRUITMENT LTD,,Large,,5106239388,CLASSIC CASEWORK - ES,SW20 0BA,541.62,
MHCLG,PINS,14/09/2018,Agency Staff,Planning Casework Operations,REED SPECIALIST RECRUITMENT LTD,,Large,,5106239389,CLASSIC CASEWORK - CM,SW20 0BA,502.92,
MHCLG,PINS,14/09/2018,"Furniture, Fittings and carpets",TR Organisational Agility,AMARELLE LTD,,Small,,2100063988,Main Works,BS2 0QD,"-3,456.00",
MHCLG,PINS,14/09/2018,"Furniture, Fittings and carpets",TR Organisational Agility,AMARELLE LTD,,Small,,5106239253,Main Works,BS2 0QD,"3,456.00",
MHCLG,PINS,14/09/2018,Legal Fees,"Policy, Knowledge & Quality",GOVERNMENT LEGAL DEPT,,Public Bodies,,5106239326,Disbursements,WC2B 4TS,"15,891.85",
MHCLG,PINS,14/09/2018,Legal Fees,"Policy, Knowledge & Quality",GOVERNMENT LEGAL DEPT,,Public Bodies,,5106239326,Fees and Charges,WC2B 4TS,"63,132.70",
MHCLG,PINS,14/09/2018,NSI Fees & Expenses,NSI Fees Planning,CARBROOK ASSOCIATES,,Micro,,2100063912,,M32 8QU,"1,120.00",
MHCLG,PINS,14/09/2018,NSI Fees & Expenses,NSI Expenses Planning,CARBROOK ASSOCIATES,,Micro,,2100063912,,M32 8QU,217.10,
MHCLG,PINS,14/09/2018,NSI Fees & Expenses,NSI Fees Planning,KIM BENNETT PLANNING SERVICES,,Micro,,2100063911,,CT2 7ET,560.00,
MHCLG,PINS,14/09/2018,NSI Fees & Expenses,NSI Expenses Planning,KIM BENNETT PLANNING SERVICES,,Micro,,2100063911,,CT2 7ET,49.95,
MHCLG,PINS,14/09/2018,Specialist Technical Support,TR Digital Transformation,HAYS SPECIALIST RECRUITMENT LTD,,Large,,5106239361,IT Business Analyst Resource,NW1 2AF,"3,197.28",
MHCLG,PINS,17/09/2018,Agency Staff,Planning Casework Operations,REED SPECIALIST RECRUITMENT LTD,,Large,,5106239390,CLASSIC CASEWORK - KR,SW20 0BA,679.32,
MHCLG,PINS,17/09/2018,EXP � PURCHASE OF GOODS /SERVICES R & D,TR Transformation,HAYS SPECIALIST RECRUITMENT LTD,,Large,,5106239334,ODTBenefits Analyst Resource,NW1 2AF,"2,983.75",
MHCLG,PINS,17/09/2018,Mobile phone costs,ICT Digital Services,GAMMA TELECOM LTD,,Large,,2100064022,"Tariffs, MDM & Multinet fees",EC4M 7RD,"-6,650.20",
MHCLG,PINS,17/09/2018,Mobile phone costs,ICT Digital Services,GAMMA TELECOM LTD,,Large,,5106239287,"Tariffs, MDM & Multinet fees",EC4M 7RD,"6,650.20",
MHCLG,PINS,17/09/2018,Printing,Governance & Strategic Support,APS GROUP,,Micro,,5106239394,printing & publications: annual report,SK3 02P,333.83,
MHCLG,PINS,17/09/2018,Specialist Technical Support,"Finance, Commercial & Performance",ALLEN LANE LTD,,Medium,,5106239301,FPBP Resource ext,SW1Y 6RJ,"2,056.61",
MHCLG,PINS,17/09/2018,TSOL Adverse Costs,"Policy, Knowledge & Quality",GOVERNMENT LEGAL DEPARTMENT,,Public Bodies,,2100063984,,WC2B 4TS,"4,000.00",
MHCLG,PINS,18/09/2018,Agency Staff,Enforcements,REED SPECIALIST RECRUITMENT LTD,,Large,,5106239409,Agency Staff RT,SW20 0BA,676.66,
MHCLG,PINS,18/09/2018,Agency Staff,Inspector Development & Support Team,REED SPECIALIST RECRUITMENT LTD,,Large,,5106239411,Temp staff for IDST,SW20 0BA,626.88,
MHCLG,PINS,18/09/2018,Agency Staff,TR Organisational Agility,REED SPECIALIST RECRUITMENT LTD,,Large,,5106239413,Agency Staff DB,SW20 0BA,835.85,
MHCLG,PINS,18/09/2018,Agency Staff,Planning Casework Operations,REED SPECIALIST RECRUITMENT LTD,,Large,,5106239426,AO AGENCY STAFF EJ,SW20 0BA,591.74,
MHCLG,PINS,18/09/2018,Agency Staff,Planning Casework Operations,REED SPECIALIST RECRUITMENT LTD,,Large,,5106239427,AO AGENCY STAFF JJF,SW20 0BA,555.26,
MHCLG,PINS,18/09/2018,Agency Staff,Planning Casework Operations,REED SPECIALIST RECRUITMENT LTD,,Large,,5106239428,Agency AO JM,SW20 0BA,486.40,
MHCLG,PINS,18/09/2018,Agency Staff,Planning Casework Operations,REED SPECIALIST RECRUITMENT LTD,,Large,,5106239429,Agency AO CB,SW20 0BA,452.88,
MHCLG,PINS,18/09/2018,Agency Staff,"Policy, Knowledge & Quality",REED SPECIALIST RECRUITMENT LTD,,Large,,5106239430,Agency Staff for Library,SW20 0BA,466.09,
MHCLG,PINS,18/09/2018,IT SUPPORT,ICT Digital Services,THIRTY FOUR FEET LTD,,Micro,,5106239403,IT tester services - contract extension,NP15 1QB,"2,100.00",
MHCLG,PINS,18/09/2018,IT SUPPORT,ICT Digital Services,THIRTY FOUR FEET LTD,,Micro,,5106239421,IT tester services - contract extension,NP15 1QB,"2,730.00",
MHCLG,PINS,18/09/2018,Specialist Technical Support,TR Digital Transformation,HAYS SPECIALIST RECRUITMENT LTD,,Large,,5106239333,ITMP PDM,NW1 2AF,"4,660.50",
MHCLG,PINS,18/09/2018,Technical Aids for the disabled,Human Resources,HEALTH  MANAGEMENT LTD,,Medium,,5106239407,Health Managemtn 2018/19,BN8 5NN,"1,473.60",
MHCLG,PINS,19/09/2018,Agency Staff,Planning Casework Operations,REED SPECIALIST RECRUITMENT LTD,,Large,,5106239408,CLASSIC CASEWORK - ES,SW20 0BA,601.30,
MHCLG,PINS,19/09/2018,Agency Staff,Planning Casework Operations,REED SPECIALIST RECRUITMENT LTD,,Large,,5106239412,CLASSIC CASEWORK - CM,SW20 0BA,676.66,
MHCLG,PINS,19/09/2018,Agency Staff,Transformation Prog Management Office,REED SPECIALIST RECRUITMENT LTD,,Large,,5106239414,Programme Support role SB,SW20 0BA,912.88,
MHCLG,PINS,19/09/2018,Agency Staff,Transformation Prog Management Office,REED SPECIALIST RECRUITMENT LTD,,Large,,5106239415,Programme Support Role,SW20 0BA,"1,018.72",
MHCLG,PINS,19/09/2018,Agency Staff,"Finance, Commercial & Performance",REED SPECIALIST RECRUITMENT LTD,,Large,,5106239416,EO For Finance,SW20 0BA,869.44,
MHCLG,PINS,19/09/2018,Agency Staff,Planning Casework Operations,REED SPECIALIST RECRUITMENT LTD,,Large,,5106239417,Agency AO MR,SW20 0BA,507.01,
MHCLG,PINS,19/09/2018,Agency Staff,Planning Casework Operations,REED SPECIALIST RECRUITMENT LTD,,Large,,5106239418,CLASSIC CASEWORK - KR,SW20 0BA,660.96,
MHCLG,PINS,19/09/2018,Agency Staff,TR People,REED SPECIALIST RECRUITMENT LTD,,Large,,5106239481,AO HR GDPR MC,SW20 0BA,486.36,
MHCLG,PINS,19/09/2018,Agency Staff,TR People,REED SPECIALIST RECRUITMENT LTD,,Large,,5106239483,AO HR ADVICE CW,SW20 0BA,456.66,
MHCLG,PINS,19/09/2018,IT SUPPORT,TR Digital Transformation,AIIMI LTD,,Medium,,5106239475,Variation 1 Implementaiton Consultant,MK9 1JL,"3,780.00",
MHCLG,PINS,19/09/2018,NSI Fees & Expenses,NSI Fees Planning,D C PLANNING LTD,,Data Not Provided,,2100064021,,BH14 8AL,"2,352.00",
MHCLG,PINS,19/09/2018,NSI Fees & Expenses,NSI Expenses Planning,D C PLANNING LTD,,Data Not Provided,,2100064021,,BH14 8AL,237.72,
MHCLG,PINS,19/09/2018,NSI Fees & Expenses,NSI Fees Planning,D C PLANNING LTD,,Data Not Provided,,2100064053,,BH14 8AL,"2,520.00",
MHCLG,PINS,19/09/2018,NSI Fees & Expenses,NSI Expenses Planning,D C PLANNING LTD,,Data Not Provided,,2100064053,,BH14 8AL,106.44,
MHCLG,PINS,19/09/2018,NSI Fees & Expenses,NSI Fees Planning,EGGLETON PLANNING AND DESIGN,,Micro,,2100064023,,HG4 2QF,"1,680.00",
MHCLG,PINS,19/09/2018,NSI Fees & Expenses,NSI Expenses Planning,EGGLETON PLANNING AND DESIGN,,Micro,,2100064023,,HG4 2QF,89.28,
MHCLG,PINS,19/09/2018,NSI Fees & Expenses,NSI Fees Planning,FITZSIMON PLANNING & DEVELOPMENT,,Micro,,2100064050,,CH7 5NL,"1,680.00",
MHCLG,PINS,19/09/2018,NSI Fees & Expenses,NSI Fees Planning,GARY DEANE ASSOCIATES LIMITED,,Micro,,2100063985,,M33 6RG,"2,016.00",
MHCLG,PINS,19/09/2018,NSI Fees & Expenses,NSI Expenses Planning,GARY DEANE ASSOCIATES LIMITED,,Micro,,2100063985,,M33 6RG,235.44,
MHCLG,PINS,19/09/2018,NSI Fees & Expenses,NSI Fees Planning,MARTIN ANDREWS PLANNING CONSULTANCY,,Micro,,2100063956,,BH15 1HH,"2,520.00",
MHCLG,PINS,19/09/2018,NSI Fees & Expenses,NSI Expenses Planning,MARTIN ANDREWS PLANNING CONSULTANCY,,Micro,,2100063956,,BH15 1HH,252.00,
MHCLG,PINS,19/09/2018,NSI Fees & Expenses,NSI Fees Planning,S P PLANNING,,Small,,2100064049,,EC1M 5QA,"1,344.00",
MHCLG,PINS,19/09/2018,NSI Fees & Expenses,NSI Expenses Planning,S P PLANNING,,Small,,2100064049,,EC1M 5QA,24.30,
MHCLG,PINS,19/09/2018,Office machinery consumables,Business Support,X M A LIMITED,,Data Not Provided,,5106239472,Office Machine Consumables 18-19,NG11 7EP,"1,618.56",
MHCLG,PINS,19/09/2018,Specialist Technical Support,TR Digital Transformation,HAYS SPECIALIST RECRUITMENT LTD,,Large,,5106239434,ITMP PDM,NW1 2AF,"3,728.40",
MHCLG,PINS,19/09/2018,Specialist Technical Support,TR Digital Transformation,HAYS SPECIALIST RECRUITMENT LTD,,Large,,5106239436,ITMP PDM,NW1 2AF,"4,660.50",
MHCLG,PINS,19/09/2018,Specialist Technical Support,TR Digital Transformation,HAYS SPECIALIST RECRUITMENT LTD,,Large,,5106239447,ITMP PDM,NW1 2AF,"4,660.50",
MHCLG,PINS,20/09/2018,Agency Staff,Planning Casework Operations,REED SPECIALIST RECRUITMENT LTD,,Large,,5106239236,Agency AO MR,SW20 0BA,478.15,
MHCLG,PINS,20/09/2018,NSI Fees & Expenses,NSI Fees Planning,CHRIS TIVEY ASSOCIATES,,Micro,,2100064086,,BA4 9DN,"1,680.00",
MHCLG,PINS,20/09/2018,NSI Fees & Expenses,NSI Expenses Planning,CHRIS TIVEY ASSOCIATES,,Micro,,2100064086,,BA4 9DN,164.52,
MHCLG,PINS,20/09/2018,NSI Fees & Expenses,NSI Fees Planning,MARTIN ANDREWS PLANNING CONSULTANCY,,Micro,,2100064084,,BH15 1HH,"3,024.00",
MHCLG,PINS,20/09/2018,NSI Fees & Expenses,NSI Expenses Planning,MARTIN ANDREWS PLANNING CONSULTANCY,,Micro,,2100064084,,BH15 1HH,64.32,
MHCLG,PINS,20/09/2018,Office machinery consumables,Business Support,X M A LIMITED,,Data Not Provided,,5106239496,Office Machine Consumables 18-19,NG11 7EP,264.48,
MHCLG,PINS,21/09/2018,Agency Staff,TR People,HAYS SPECIALIST RECRUITMENT LTD,,Large,,5106239521,HRBP- SL,NW1 2AF,"3,193.80",
MHCLG,PINS,21/09/2018,Courier Services,Estates,ROYAL MAIL,,Large,,5106239541,Outgoing post,S49 1HQ,"1,309.09",
MHCLG,PINS,21/09/2018,"Furniture, Fittings and carpets",TR Organisational Agility,AMARELLE LTD,,Small,,5106239540,Variation 1,BS2 0QD,456.00,
MHCLG,PINS,21/09/2018,IT SUPPORT,ICT Digital Services,METHODS PROFESSIONAL SERVICES,,Small,,5106239555,Programme Manager Contract,EC1A 4EN,"14,430.00",
MHCLG,PINS,21/09/2018,Legal Fees,"Policy, Knowledge & Quality",GOVERNMENT LEGAL DEPT,,Public Bodies,,5106239517,Disbursements,WC2B 4TS,"35,386.09",
MHCLG,PINS,21/09/2018,Legal Fees,"Policy, Knowledge & Quality",GOVERNMENT LEGAL DEPT,,Public Bodies,,5106239517,Fees & Charges,WC2B 4TS,"55,704.35",
MHCLG,PINS,21/09/2018,Legal Fees,Wales Director,GOVERNMENT LEGAL DEPT,,Public Bodies,,5106239547,Legal Fees / Service Non VAT,WC2B 4TS,133.40,
MHCLG,PINS,21/09/2018,Legal Fees,Wales Director,GOVERNMENT LEGAL DEPT,,Public Bodies,,5106239547,Legal Fees(2017-18),WC2B 4TS,"2,504.33",
MHCLG,PINS,21/09/2018,Specialist Technical Support,TR Digital Transformation,HAYS SPECIALIST RECRUITMENT LTD,,Large,,5106239519,ITMP PDM,NW1 2AF,"4,660.50",
MHCLG,PINS,21/09/2018,Translations,Wales Director,TROSOL CYFYNGEDIG,,Small,,5106239542,PINS Wales Translations Costs 2018-19,CF14 5GH,"2,517.19",
MHCLG,PINS,24/09/2018,Communication Telecom Costs,ICT Digital Services,VODAFONE LTD FORMELY CABLE  & WIREL,,Large,,5106239585,GSI service,MK3 5JP,"114,116.65",
MHCLG,PINS,24/09/2018,Communication Telecom Costs,ICT Digital Services,VODAFONE LTD FORMELY CABLE  & WIREL,,Large,,5106239588,GSI service,MK3 5JP,"45,544.38",
MHCLG,PINS,24/09/2018,EXP � PURCHASE OF GOODS /SERVICES R & D,Research and Development,GOPRO CONSULTING LTD,,Small,,5106239589,ODT Alpha Prototyping Config/Test Phase2,WC1N 2EB,"70,100.00",
MHCLG,PINS,24/09/2018,EXP � PURCHASE OF GOODS /SERVICES R & D,Research and Development,GOPRO CONSULTING LTD,,Small,,5106239589,T&S Phase 2,WC1N 2EB,"6,005.00",
MHCLG,PINS,24/09/2018,IT - Service Contracts,ICT Digital Services,VODAFONE LTD FORMELY CABLE  & WIREL,,Large,,5106239590,GSI service,MK3 5JP,"16,265.85",
MHCLG,PINS,24/09/2018,IT SUPPORT,TR Digital Transformation,HAYS SPECIALIST RECRUITMENT LTD,,Large,,5106239445,Commercial Digital Category Mgr,NW1 2AF,"3,497.28",
MHCLG,PINS,24/09/2018,NSI Fees & Expenses,NSI Fees Planning,CHRIS TIVEY ASSOCIATES,,Micro,,2100064124,,BA4 9DN,"1,680.00",
MHCLG,PINS,24/09/2018,NSI Fees & Expenses,NSI Expenses Planning,CHRIS TIVEY ASSOCIATES,,Micro,,2100064124,,BA4 9DN,149.94,
MHCLG,PINS,24/09/2018,NSI Fees & Expenses,NSI Fees Planning,JDA DEVELOPMENT & PLANNING SERVICE,,Micro,,2100064125,,TA14 6PT,"1,540.00",
MHCLG,PINS,24/09/2018,NSI Fees & Expenses,NSI Expenses Planning,JDA DEVELOPMENT & PLANNING SERVICE,,Micro,,2100064125,,TA14 6PT,103.20,
MHCLG,PINS,25/09/2018,Agency Staff,Governance & Strategic Support,REED SPECIALIST RECRUITMENT LTD,,Large,,5106239629,Agency Staff DB,SW20 0BA,813.85,
MHCLG,PINS,25/09/2018,Agency Staff,"Policy, Knowledge & Quality",REED SPECIALIST RECRUITMENT LTD,,Large,,5106239632,Agency Staff for Library,SW20 0BA,486.36,
MHCLG,PINS,25/09/2018,Agency Staff,Enforcements,REED SPECIALIST RECRUITMENT LTD,,Large,,5106239634,Agency Staff RT,SW20 0BA,676.66,
MHCLG,PINS,25/09/2018,Courier Services,Estates,PARCELFORCE WORLDWIDE,,Large,,5106239593,Courier Service,MK7 8LE,"3,868.03",
MHCLG,PINS,25/09/2018,EXP � PURCHASE OF GOODS /SERVICES R & D,TR Transformation,HAYS SPECIALIST RECRUITMENT LTD,,Large,,5106239518,ODTBenefits Analyst Resource,NW1 2AF,"2,983.75",
MHCLG,PINS,25/09/2018,IT SUPPORT,ICT Digital Services,THIRTY FOUR FEET LTD,,Micro,,5106239630,IT tester services - contract extension,NP15 1QB,"2,100.00",
MHCLG,PINS,25/09/2018,Training,TR People,HOWARD DAVIS CONSULTANCY LTD,,Micro,,5106239592,Exec Coaching,GL20 7SL,"2,100.00",
MHCLG,PINS,26/09/2018,Agency Staff,Transformation Prog Management Office,REED SPECIALIST RECRUITMENT LTD,,Large,,5106239624,Programme Support Role,SW20 0BA,"1,012.09",
MHCLG,PINS,26/09/2018,Agency Staff,Planning Casework Operations,REED SPECIALIST RECRUITMENT LTD,,Large,,5106239660,CLASSIC CASEWORK - KR,SW20 0BA,679.32,
MHCLG,PINS,26/09/2018,Agency Staff,Planning Casework Operations,REED SPECIALIST RECRUITMENT LTD,,Large,,5106239661,Agency AO JM,SW20 0BA,490.52,
MHCLG,PINS,26/09/2018,Agency Staff,Planning Casework Operations,REED SPECIALIST RECRUITMENT LTD,,Large,,5106239662,CLASSIC CASEWORK - ES,SW20 0BA,679.32,
MHCLG,PINS,26/09/2018,Agency Staff,Planning Casework Operations,REED SPECIALIST RECRUITMENT LTD,,Large,,5106239664,AO AGENCY STAFF EJ,SW20 0BA,486.36,
MHCLG,PINS,26/09/2018,Agency Staff,Planning Casework Operations,REED SPECIALIST RECRUITMENT LTD,,Large,,5106239666,Agency AO MR,SW20 0BA,490.52,
MHCLG,PINS,26/09/2018,Agency Staff,Planning Casework Operations,REED SPECIALIST RECRUITMENT LTD,,Large,,5106239667,Agency AO CB,SW20 0BA,377.40,
MHCLG,PINS,26/09/2018,Agency Staff,Planning Casework Operations,REED SPECIALIST RECRUITMENT LTD,,Large,,5106239669,AO AGENCY STAFF JJF,SW20 0BA,486.36,
MHCLG,PINS,26/09/2018,Agency Staff,TR Digital Transformation,REED SPECIALIST RECRUITMENT LTD,,Large,,5106239715,Build Suport,SW20 0BA,810.36,
MHCLG,PINS,26/09/2018,NSI Fees & Expenses,NSI Fees Planning,ANDREW DALE,,Not assigned,,2100064199,,DE23 8DP,"2,450.00",
MHCLG,PINS,26/09/2018,NSI Fees & Expenses,NSI Expenses Planning,ANDREW DALE,,Not assigned,,2100064199,,DE23 8DP,445.55,
MHCLG,PINS,26/09/2018,NSI Fees & Expenses,NSI Fees Planning,FITZSIMON PLANNING & DEVELOPMENT,,Micro,,2100064202,,CH7 5NL,"1,680.00",
MHCLG,PINS,26/09/2018,NSI Fees & Expenses,NSI Fees Planning,LJE PLANNING LTD,,Data Not Provided,,2100064201,,SO22 6RT,"2,016.00",
MHCLG,PINS,26/09/2018,NSI Fees & Expenses,NSI Expenses Planning,LJE PLANNING LTD,,Data Not Provided,,2100064201,,SO22 6RT,103.32,
MHCLG,PINS,26/09/2018,NSI Fees & Expenses,NSI Fees Planning,MR R J MAILE,,Not assigned,,2100064197,,BN11 1QG,"2,520.00",
MHCLG,PINS,26/09/2018,Office Supplies,Business Support,BANNER BUSINESS SUPPLIES LTD,,Large,,5106239709,Office Stationery 18-19,S9 1XU,353.00,
MHCLG,PINS,26/09/2018,Office Supplies,Business Support,BANNER BUSINESS SUPPLIES LTD,,Large,,5106239709,Paper 18-19,S9 1XU,211.55,
MHCLG,PINS,26/09/2018,Translations,Infrastructure Planning,TROSOL CYFYNGEDIG,,Small,,5106239663,Welsh Translation Services NID,CF14 5GH,225.72,
MHCLG,PINS,27/09/2018,Advertising,ROW,TMP (UK) LIMITED,,Large,,5106239741,Statutory Advertising - ROW,W1T 7RQ,"1,138.49",
MHCLG,PINS,27/09/2018,Agency Staff,"Finance, Commercial & Performance",REED SPECIALIST RECRUITMENT LTD,,Large,,5106239622,EO For Finance,SW20 0BA,727.82,
MHCLG,PINS,27/09/2018,IT - Service Contracts,TR Digital Transformation,MHCLG,,Public Bodies,,2100064309,NRF093P - disaster recovery testing for,HP2 4XN,"-4,274.90",
MHCLG,PINS,27/09/2018,IT - Service Contracts,TR Organisational Agility,MHCLG,,Public Bodies,,2100064309,NRF0106P - PINS accommodation moves,HP2 4XN,"-11,235.00",
MHCLG,PINS,27/09/2018,IT - Service Contracts,ICT Digital Services,MHCLG,,Public Bodies,,2100064309,Fujitsu new requirements during 2018-19,HP2 4XN,"-9,067.10",
MHCLG,PINS,27/09/2018,IT - Service Contracts,ICT Digital Services,MHCLG,,Public Bodies,,2100064309,Recharges for new requirements 2017-18,HP2 4XN,"-44,540.47",
MHCLG,PINS,27/09/2018,IT - Service Contracts,TR Digital Transformation,MHCLG,,Public Bodies,,5106239500,NRF093P - disaster recovery testing for,HP2 4XN,"4,274.90",
MHCLG,PINS,27/09/2018,IT - Service Contracts,TR Organisational Agility,MHCLG,,Public Bodies,,5106239500,NRF0106P - PINS accommodation moves,HP2 4XN,"11,235.00",
MHCLG,PINS,27/09/2018,IT - Service Contracts,ICT Digital Services,MHCLG,,Public Bodies,,5106239500,Fujitsu new requirements during 2018-19,HP2 4XN,"9,067.10",
MHCLG,PINS,27/09/2018,IT - Service Contracts,ICT Digital Services,MHCLG,,Public Bodies,,5106239500,Recharges for new requirements 2017-18,HP2 4XN,"44,540.47",
MHCLG,PINS,27/09/2018,IT SUPPORT,Transformation Prog Management Office,MHCLG,,Public Bodies,,2100064309,Horizon Database server analysis,HP2 4XN,"-3,551.00",
MHCLG,PINS,27/09/2018,IT SUPPORT,Transformation Prog Management Office,MHCLG,,Public Bodies,,5106239500,Horizon Database server analysis,HP2 4XN,"3,551.00",
MHCLG,PINS,27/09/2018,Specialist Technical Support,TR Digital Transformation,HAYS SPECIALIST RECRUITMENT LTD,,Large,,2100064312,ITMP PDM until 15.10.2018,NW1 2AF,"-4,660.50",
MHCLG,PINS,27/09/2018,Specialist Technical Support,TR Digital Transformation,HAYS SPECIALIST RECRUITMENT LTD,,Large,,5106239753,ITMP PDM until 15.10.2018,NW1 2AF,"4,660.50",
MHCLG,PINS,27/09/2018,Specialist Technical Support,TR Digital Transformation,MHCLG,,Public Bodies,,2100064309,NRF095P - OHW session timeout increase,HP2 4XN,"-2,122.00",
MHCLG,PINS,27/09/2018,Specialist Technical Support,TR Digital Transformation,MHCLG,,Public Bodies,,5106239500,NRF095P - OHW session timeout increase,HP2 4XN,"2,122.00",
MHCLG,PINS,28/09/2018,Agency Staff,TR People,HAYS SPECIALIST RECRUITMENT LTD,,Large,,5106239761,HRBP- SL,NW1 2AF,"3,193.80",
MHCLG,PINS,28/09/2018,Agency Staff,Transformation Prog Management Office,REED SPECIALIST RECRUITMENT LTD,,Large,,5106239743,Programme Support role SB,SW20 0BA,807.04,
MHCLG,PINS,28/09/2018,Courier Services,Estates,ROYAL MAIL,,Large,,5106239797,Timed Delivery Service,S49 1HQ,"4,575.60",
MHCLG,PINS,28/09/2018,Mobile phone costs,ICT Digital Services,GAMMA TELECOM LTD,,Large,,5106239768,Miscellaneous VAT zero rated items,EC4M 7RD,5.13,
MHCLG,PINS,28/09/2018,Mobile phone costs,ICT Digital Services,GAMMA TELECOM LTD,,Large,,5106239768,Mobile telephony services 2018-19,EC4M 7RD,"6,644.04",
MHCLG,PINS,28/09/2018,NSI Fees & Expenses,NSI Fees Planning,H J L PLANNING,,Micro,,2100064281,,CM3 1HZ,"1,400.00",
MHCLG,PINS,28/09/2018,NSI Fees & Expenses,NSI Expenses Planning,H J L PLANNING,,Micro,,2100064281,,CM3 1HZ,58.39,
MHCLG,PINS,28/09/2018,NSI Fees & Expenses,NSI Fees Planning,LEIGH & GLENNIE LTD,,Micro,,2100064239,,SL5 9EA,"2,016.00",
MHCLG,PINS,28/09/2018,NSI Fees & Expenses,NSI Expenses Planning,LEIGH & GLENNIE LTD,,Micro,,2100064239,,SL5 9EA,104.64,
MHCLG,PINS,28/09/2018,Safety equipment,Business Support,BURLINGTON'S UNIFORMS LTD,,Small,,5106239795,PPE for new inspector intake,EN3 7PX,421.13,
MHCLG,PINS,28/09/2018,TSOL Adverse Costs,"Policy, Knowledge & Quality",GOVERNMENT LEGAL DEPARTMENT,,Public Bodies,,2100064307,,WC2B 4TS,700.00,
